fUSD/lending_fUSD_20250804
["ID","MTS","AMOUNT","RATE_DAILY","PERIOD"]
[377256857,1754307039896,-1662.7,0.00038356,2]
[377256860,1754307039906,-448.1993298,0.00038356,2]
[377256863,1754307039916,-400.0,0.00038356,2]
[377256866,1754307039926,-400.0,0.00038356,2]
[377256868,1754307039935,-421.46,0.00038356,2]
[377256871,1754307039945,-1940.39,0.00038356,2]
[377256874,1754307039954,-1365.06,0.00038356,2]
[377256878,1754307039965,-400.0,0.00038356,2]
[377256881,1754307039975,-952.93,0.00038356,2]
[377256884,1754307039985,-400.0,0.00038356,2]
[377256887,1754307039995,-400.0,0.00038356,2]
[377256890,1754307040005,-400.0,0.00038356,2]
[377256893,1754307040016,-400.0,0.00038356,2]
[377256896,1754307040025,-460.0,0.00038356,2]
[377256899,1754307040035,-400.0,0.00038356,2]
[377256901,1754307040043,-161.84002151,0.00038356,2]
[377256904,1754307040053,-400.0,0.00038356,2]
[377256907,1754307040062,-400.0,0.00038356,2]
[377256909,1754307040071,-681.74,0.00038356,2]
[377256912,1754307040081,-400.0,0.00038356,2]
[377256915,1754307040091,-1270.32,0.00038356,2]
[377256918,1754307040100,-400.0,0.00038356,2]
[377256921,1754307040110,-407.72160624,0.00038356,2]
[377256924,1754307040119,-400.0,0.00038356,2]
[377256926,1754307040129,-400.0,0.00038356,2]
[377256928,1754307040139,-495.94,0.00038356,2]
[377256930,1754307040149,-400.0,0.00038356,2]
[377256932,1754307040158,-400.0,0.00038356,2]
[377256935,1754307040168,-400.0,0.00038356,2]
[377256938,1754307040178,-400.0,0.00038356,2]
[377256941,1754307040188,-400.0,0.00038356,2]
[377256944,1754307040197,-1990.45,0.00038356,2]
[377256947,1754307040207,-608.35704968,0.00038356,2]
[377256952,1754307040217,-400.0,0.00038356,2]
[377256955,1754307040227,-400.0,0.00038356,2]
[377256958,1754307040237,-400.0,0.00038356,2]
[377256960,1754307040248,-400.0,0.00038356,2]
[377256963,1754307040257,-400.0,0.00038356,2]
[377256966,1754307040266,-399.47241761,0.00038356,2]
[377256969,1754307040275,-1607.54,0.00038356,2]
[377256972,1754307040285,-400.0,0.00038356,2]
[377256975,1754307040294,-519.5,0.00038356,2]
[377256978,1754307040303,-1402.16,0.00038356,2]
[377256981,1754307040314,-400.0,0.00038356,2]
[377256984,1754307040323,-980.14,0.00038356,2]
[377256987,1754307040332,-400.0,0.00038356,2]
[377256991,1754307040342,-1568.88,0.00038356,2]
[377256994,1754307040351,-400.0,0.00038356,2]
[377256997,1754307040361,-400.0,0.00038356,2]
[377257000,1754307040370,-445.44,0.00038356,2]
[377257003,1754307040379,-400.0,0.00038356,2]
[377257006,1754307040388,-2149.98,0.00038356,2]
[377257009,1754307040398,-400.0,0.00038356,2]
[377257013,1754307040407,-400.0,0.00038356,2]
[377257016,1754307040417,-400.0,0.00038356,2]
[377257019,1754307040426,-1328.71,0.00038356,2]
[377257022,1754307040435,-400.0,0.00038356,2]
[377257025,1754307040444,-400.0,0.00038356,2]
[377257028,1754307040453,-400.0,0.00038356,2]
[377257031,1754307040462,-400.0,0.00038356,2]
[377257034,1754307040471,-400.0,0.00038356,2]
[377257037,1754307040480,-586.64,0.00038356,2]
[377257040,1754307040490,-400.0,0.00038356,2]
[377257043,1754307040499,-400.0,0.00038356,2]
[377257047,1754307040509,-400.0,0.00038356,2]
[377257050,1754307040518,-3263.75,0.00038356,2]
[377257053,1754307040528,-1104.52,0.00038356,2]
[377257056,1754307040537,-436.1,0.00038356,2]
[377257059,1754307040546,-636.35,0.00038356,2]
[377257062,1754307040555,-400.0,0.00038356,2]
[377257065,1754307040565,-1329.24,0.00038356,2]
[377257068,1754307040574,-644.79,0.00038356,2]
[377257071,1754307040584,-448.43603644,0.00038356,2]
[377257075,1754307040593,-400.0,0.00038356,2]
[377257077,1754307040603,-400.0,0.00038356,2]
[377257080,1754307040612,-400.0,0.00038356,2]
[377257083,1754307040621,-468.62,0.00038356,2]
[377257086,1754307040630,-400.0,0.00038356,2]
[377257089,1754307040640,-400.0,0.00038356,2]
[377257092,1754307040651,-1127.15,0.00038356,2]
[377257095,1754307040662,-701.03,0.00038356,2]
[377257098,1754307040671,-400.0,0.00038356,2]
[377257101,1754307040681,-400.0,0.00038356,2]
[377257104,1754307040690,-400.0,0.00038356,2]
[377257107,1754307040701,-400.0,0.00038356,2]
[377257110,1754307040710,-400.0,0.00038356,2]
[377257113,1754307040719,-400.0,0.00038356,2]
[377257116,1754307040728,-400.0,0.00038356,2]
[377257119,1754307040737,-400.0,0.00038356,2]
[377257122,1754307040747,-452.76,0.00038356,2]
[377257125,1754307040756,-400.0,0.00038356,2]
[377257128,1754307040766,-992.4,0.00038356,2]
[377257130,1754307040775,-400.0,0.00038356,2]
[377257132,1754307040784,-400.0,0.00038356,2]
[377257134,1754307040795,-400.0,0.00038356,2]
[377257136,1754307040804,-400.0,0.00038356,2]
[377257138,1754307040814,-400.0,0.00038356,2]
[377257139,1754307040823,-400.0,0.00038356,2]
[377257141,1754307040832,-534.51,0.00038356,2]
[377257143,1754307040842,-529.07589382,0.00038356,2]
[377257145,1754307040851,-811.05,0.00038356,2]
[377257147,1754307040860,-892.92,0.00038356,2]
[377257149,1754307040870,-400.0,0.00038356,2]
[377257151,1754307040879,-400.0,0.00038356,2]
[377257153,1754307040889,-1343.86,0.00038356,2]
[377257155,1754307040898,-400.0,0.00038356,2]
[377257157,1754307040907,-628.82,0.00038356,2]
[377257159,1754307040916,-1242.39,0.00038356,2]
[377257160,1754307040928,-1542.48,0.00038356,2]
[377257162,1754307040937,-400.0,0.00038356,2]
[377257164,1754307040947,-876.68,0.00038356,2]
[377257166,1754307040955,-400.0,0.00038356,2]
[377257168,1754307040965,-912.37,0.00038356,2]
[377257170,1754307040974,-400.0,0.00038356,2]
[377257172,1754307040984,-400.0,0.00038356,2]
[377257173,1754307040993,-400.0,0.00038356,2]
[377257175,1754307041002,-400.0,0.00038356,2]
[377257177,1754307041011,-400.0,0.00038356,2]
[377257179,1754307041020,-581.56,0.00038356,2]
[377257181,1754307041030,-812.07,0.00038356,2]
[377257183,1754307041039,-400.0,0.00038356,2]
[377257185,1754307041048,-540.98,0.00038356,2]
[377257187,1754307041057,-466.17,0.00038356,2]
[377257189,1754307041067,-400.0,0.00038356,2]
[377257191,1754307041076,-400.0,0.00038356,2]
[377257193,1754307041085,-892.29,0.00038356,2]
[377257195,1754307041094,-512.04,0.00038356,2]
[377257197,1754307041103,-400.0,0.00038356,2]
[377257199,1754307041112,-400.0,0.00038356,2]
[377257201,1754307041123,-400.0,0.00038356,2]
[377257203,1754307041132,-1204.41,0.00038356,2]
[377257205,1754307041141,-507.62,0.00038356,2]
[377257207,1754307041151,-978.92,0.00038356,2]
[377257209,1754307041160,-2032.62,0.00038356,2]
[377257211,1754307041169,-400.0,0.00038356,2]
[377257212,1754307041178,-483.03,0.00038356,2]
[377257214,1754307041187,-400.0,0.00038356,2]
[377257216,1754307041196,-623.34,0.00038356,2]
[377257218,1754307041205,-400.0,0.00038356,2]
[377257220,1754307041215,-400.0,0.00038356,2]
[377257222,1754307041224,-400.0,0.00038356,2]
[377257224,1754307041233,-400.0,0.00038356,2]
[377257226,1754307041242,-1282.08,0.00038356,2]
[377257228,1754307041251,-522.189098,0.00038356,2]
[377257230,1754307041260,-954.63,0.00038356,2]
[377257232,1754307041269,-1000.0,0.00038356,2]
[377257234,1754307041279,-400.0,0.00038356,2]
[377257236,1754307041288,-424.03,0.00038356,2]
[377257238,1754307041297,-400.0,0.00038356,2]
[377257240,1754307041307,-245.75200798,0.00038356,2]
[377257242,1754307041315,-862.61,0.00038356,2]
[377257244,1754307041325,-218.64032536,0.00038356,2]
[377257246,1754307041334,-694.26,0.00038356,2]
[377257248,1754307041343,-446.01,0.00038356,2]
[377257250,1754307041352,-920.74,0.00038356,2]
[377257252,1754307041366,-583.16,0.00038356,2]
[377257254,1754307041375,-400.0,0.00038356,2]
[377257255,1754307041385,-571.07,0.00038356,2]
[377257257,1754307041395,-556.35,0.00038356,2]
[377257259,1754307041405,-400.0,0.00038356,2]
[377257261,1754307041414,-402.21341149,0.00038356,2]
[377257263,1754307041424,-400.0,0.00038356,2]
[377257265,1754307041433,-400.0,0.00038356,2]
[377257267,1754307041443,-862.3,0.00038356,2]
[377257269,1754307041452,-791.02,0.00038356,2]
[377257271,1754307041462,-400.0,0.00038356,2]
[377257273,1754307041471,-400.0,0.00038356,2]
[377257275,1754307041481,-400.0,0.00038356,2]
[377257277,1754307041492,-400.0,0.00038356,2]
[377257279,1754307041502,-663.93,0.00038356,2]
[377257281,1754307041511,-400.0,0.00038356,2]
[377257283,1754307041520,-958.9,0.00038356,2]
[377257284,1754307041530,-400.0,0.00038356,2]
[377257285,1754307041540,-400.0,0.00038356,2]
[377257286,1754307041550,-400.0,0.00038356,2]
[377257287,1754307041559,-489.66,0.00038356,2]
[377257288,1754307041569,-400.0,0.00038356,2]
[377257289,1754307041579,-400.0,0.00038356,2]
[377257290,1754307041589,-481.81,0.00038356,2]
[377257291,1754307041598,-680.83,0.00038356,2]
[377257292,1754307041608,-2362.47,0.00038356,2]
[377257293,1754307041618,-414.65,0.00038356,2]
[377257294,1754307041627,-838.53,0.00038356,2]
[377257295,1754307041637,-400.0,0.00038356,2]
[377257296,1754307041649,-1047.46,0.00038356,2]
[377257297,1754307041659,-400.0,0.00038356,2]
[377257299,1754307041669,-543.05,0.00038356,2]
[377257301,1754307041679,-476.33,0.00038356,2]
[377257303,1754307041690,-1205.09,0.00038356,2]
[377257305,1754307041701,-400.0,0.00038356,2]
[377257307,1754307041711,-1053.75,0.00038356,2]
[377257309,1754307041725,-445.54,0.00038356,2]
[377257311,1754307041737,-1000.0,0.00038356,2]
[377257313,1754307041746,-400.0,0.00038356,2]
[377257315,1754307041756,-400.0,0.00038356,2]
[377257317,1754307041765,-2547.72,0.00038356,2]
[377257319,1754307041776,-907.96,0.00038356,2]
[377257321,1754307041785,-900.03,0.00038356,2]
[377257323,1754307041795,-400.0,0.00038356,2]
[377257325,1754307041805,-400.0,0.00038356,2]
[377257327,1754307041815,-461.76,0.00038356,2]
[377257329,1754307041825,-468.49,0.00038356,2]
[377257331,1754307041834,-400.0,0.00038356,2]
[377257333,1754307041844,-300.49268329,0.00038356,2]
[377257335,1754307041853,-1003.97,0.00038356,2]
[377257336,1754307041862,-801.26,0.00038356,2]
[377257338,1754307041872,-616.9,0.00038356,2]
[377257340,1754307041882,-1686.22,0.00038356,2]
[377257343,1754307041892,-747.36,0.00038356,2]
[377257345,1754307041902,-400.0,0.00038356,2]
[377257347,1754307041911,-877.94,0.00038356,2]
[377257348,1754307041921,-521.82,0.00038356,2]
[377257350,1754307041930,-400.0,0.00038356,2]
[377257352,1754307041940,-400.0,0.00038356,2]
[377257354,1754307041950,-864.99,0.00038356,2]
[377257356,1754307041959,-982.85,0.00038356,2]
[377257358,1754307041969,-400.0,0.00038356,2]
[377257360,1754307041979,-400.0,0.00038356,2]
[377257362,1754307041989,-400.0,0.00038356,2]
[377257364,1754307041999,-792.37,0.00038356,2]
[377257366,1754307042009,-400.0,0.00038356,2]
[377257368,1754307042019,-929.68,0.00038356,2]
[377257370,1754307042029,-400.0,0.00038356,2]
[377257372,1754307042039,-400.0,0.00038356,2]
[377257374,1754307042048,-449.71,0.00038356,2]
[377257376,1754307042058,-400.0,0.00038356,2]
[377257378,1754307042067,-415.04,0.00038356,2]
[377257380,1754307042077,-400.0,0.00038356,2]
[377257382,1754307042086,-892.22,0.00038356,2]
[377257384,1754307042096,-1082.15,0.00038356,2]
[377257386,1754307042105,-625.39,0.00038356,2]
[377257388,1754307042114,-400.0,0.00038356,2]
[377257390,1754307042124,-400.0,0.00038356,2]
[377257392,1754307042133,-400.0,0.00038356,2]
[377257394,1754307042143,-419.27,0.00038356,2]
[377257396,1754307042152,-1261.52,0.00038356,2]
[377257398,1754307042161,-944.85,0.00038356,2]
[377257399,1754307042171,-769.58,0.00038356,2]
[377257402,1754307042181,-400.0,0.00038356,2]
[377257403,1754307042190,-400.0,0.00038356,2]
[377257406,1754307042200,-470.89,0.00038356,2]
[377257407,1754307042210,-867.8,0.00038356,2]
[377257409,1754307042220,-400.0,0.00038356,2]
[377257411,1754307042230,-781.34,0.00038356,2]
[377257414,1754307042240,-785.95,0.00038356,2]
[377257416,1754307042251,-400.0,0.00038356,2]
[377257417,1754307042261,-524.27,0.00038356,2]
[377257419,1754307042271,-400.0,0.00038356,2]
[377257421,1754307042281,-938.84,0.00038356,2]
[377257423,1754307042291,-542.14,0.00038356,2]
[377257450,1754307042523,-400.0,0.00038356,2]
[377257452,1754307042534,-400.0,0.00038356,2]
[377257454,1754307042544,-781.06,0.00038356,2]
[377257456,1754307042554,-803.77,0.00038356,2]
[377257458,1754307042566,-867.24,0.00038356,2]
[377257460,1754307042576,-400.0,0.00038356,2]
[377257462,1754307042586,-1067.13,0.00038356,2]
[377257464,1754307042595,-556.09,0.00038356,2]
[377257466,1754307042606,-400.0,0.00038356,2]
[377257468,1754307042616,-400.0,0.00038356,2]
[377257470,1754307042625,-600.36,0.00038356,2]
[377257471,1754307042635,-400.0,0.00038356,2]
[377257473,1754307042646,-1075.4,0.00038356,2]
[377257476,1754307042660,-797.64,0.00038356,2]
[377257478,1754307042670,-400.0,0.00038356,2]
[377257479,1754307042681,-400.0,0.00038356,2]
[377257481,1754307042690,-823.92,0.00038356,2]
[377257484,1754307042703,-881.05,0.00038356,2]
[377257486,1754307042714,-400.0,0.00038356,2]
[377257488,1754307042727,-529.61,0.00038356,2]
[377257490,1754307042738,-400.0,0.00038356,2]
[377257492,1754307042748,-400.0,0.00038356,2]
[377257494,1754307042759,-516.88,0.00038356,2]
[377257496,1754307042769,-400.0,0.00038356,2]
[377257498,1754307042779,-2603.08,0.00038356,2]
[377257500,1754307042791,-818.41,0.00038356,2]
[377257502,1754307042801,-400.0,0.00038356,2]
[377257504,1754307042811,-1000.0,0.00038356,2]
[377257506,1754307042821,-1057.37,0.00038356,2]
[377257508,1754307042832,-1271.29,0.00038356,2]
[377257510,1754307042843,-400.0,0.00038356,2]
[377257512,1754307042854,-336.89406657,0.00038356,2]
[377257514,1754307042865,-400.0,0.00038356,2]
[377257516,1754307042875,-752.7,0.00038356,2]
[377257518,1754307042885,-989.85,0.00038356,2]
[377257520,1754307042895,-400.0,0.00038356,2]
[377257522,1754307042907,-661.82,0.00038356,2]
[377257524,1754307042917,-400.0,0.00038356,2]
[377257526,1754307042927,-400.0,0.00038356,2]
[377257528,1754307042937,-400.0,0.00038356,2]
[377257530,1754307042948,-400.0,0.00038356,2]
[377257532,1754307042959,-400.0,0.00038356,2]
[377257534,1754307042969,-400.0,0.00038356,2]
[377257536,1754307042978,-400.0,0.00038356,2]
[377257538,1754307042988,-400.0,0.00038356,2]
[377257540,1754307042998,-400.0,0.00038356,2]
[377257542,1754307043008,-593.04,0.00038356,2]
[377257544,1754307043019,-400.0,0.00038356,2]
[377257546,1754307043029,-400.0,0.00038356,2]
[377257548,1754307043038,-895.49,0.00038356,2]
[377257550,1754307043048,-400.0,0.00038356,2]
[377257552,1754307043059,-400.0,0.00038356,2]
[377257554,1754307043069,-441.3,0.00038356,2]
[377257557,1754307043079,-682.64,0.00038356,2]
[377257560,1754307043089,-2123.51,0.00038356,2]
[377257562,1754307043101,-714.04,0.00038356,2]
[377257565,1754307043111,-880.05,0.00038356,2]
[377257568,1754307043121,-400.0,0.00038356,2]
[377257571,1754307043131,-1189.47,0.00038356,2]
[377257573,1754307043141,-400.0,0.00038356,2]
[377257576,1754307043152,-1415.68,0.00038356,2]
[377257577,1754307043161,-400.0,0.00038356,2]
[377257579,1754307043172,-400.0,0.00038356,2]
[377257581,1754307043182,-400.0,0.00038356,2]
[377257583,1754307043192,-400.0,0.00038356,2]
[377257585,1754307043202,-400.0,0.00038356,2]
[377257587,1754307043212,-400.0,0.00038356,2]
[377257589,1754307043222,-1029.18,0.00038356,2]
[377257591,1754307043232,-266.10924169,0.00038356,2]
[377257594,1754307043242,-449.72,0.00038356,2]
[377257596,1754307043251,-400.0,0.00038356,2]
[377257598,1754307043260,-521.98,0.00038356,2]
[377257600,1754307043271,-537.9,0.00038356,2]
[377257602,1754307043280,-496.27,0.00038356,2]
[377257604,1754307043289,-7149.89,0.00038356,2]
[377257606,1754307043300,-482.93,0.00038356,2]
[377257608,1754307043309,-4907.86,0.00038356,2]
[377257610,1754307043318,-400.0,0.00038356,2]
[377257612,1754307043328,-589.39,0.00038356,2]
[377257614,1754307043337,-1599.12,0.00038356,2]
[377257616,1754307043346,-728.98,0.00038356,2]
[377257618,1754307043356,-1251.36,0.00038356,2]
[377257620,1754307043365,-400.0,0.00038356,2]
[377257622,1754307043375,-1553.62,0.00038356,2]
[377257624,1754307043385,-734.89,0.00038356,2]
[377257626,1754307043395,-400.0,0.00038356,2]
[377257628,1754307043404,-664.59,0.00038356,2]
[377257630,1754307043414,-400.0,0.00038356,2]
[377257632,1754307043423,-556.67,0.00038356,2]
[377257634,1754307043432,-778.17,0.00038356,2]
[377257636,1754307043441,-1080.24,0.00038356,2]
[377257638,1754307043450,-400.0,0.00038356,2]
[377257640,1754307043460,-400.0,0.00038356,2]
[377257642,1754307043469,-400.0,0.00038356,2]
[377257644,1754307043480,-533.41,0.00038356,2]
[377257646,1754307043489,-400.0,0.00038356,2]
[377257648,1754307043499,-400.0,0.00038356,2]
[377257650,1754307043508,-400.0,0.00038356,2]
[377257652,1754307043520,-400.0,0.00038356,2]
[377257654,1754307043529,-558.76,0.00038356,2]
[377257656,1754307043539,-400.0,0.00038356,2]
[377257658,1754307043548,-400.0,0.00038356,2]
[377257660,1754307043558,-400.0,0.00038356,2]
[377257662,1754307043567,-873.39,0.00038356,2]
[377257664,1754307043577,-400.0,0.00038356,2]
[377257666,1754307043586,-1134.95,0.00038356,2]
[377257668,1754307043595,-400.0,0.00038356,2]
[377257670,1754307043605,-732.22,0.00038356,2]
[377257672,1754307043614,-587.54,0.00038356,2]
[377257673,1754307043623,-400.0,0.00038356,2]
[377257674,1754307043632,-398.4120855,0.00038356,2]
[377257675,1754307043642,-2674.73,0.00038356,2]
[377257676,1754307043655,-1331.0,0.00038356,2]
[377257677,1754307043665,-400.0,0.00038356,2]
[377257678,1754307043674,-1331.86,0.00038356,2]
[377257679,1754307043683,-2137.86,0.00038356,2]
[377257680,1754307043694,-547.93,0.00038356,2]
[377257681,1754307043704,-400.0,0.00038356,2]
[377257683,1754307043714,-400.0,0.00038356,2]
[377257685,1754307043724,-1548.61,0.00038356,2]
[377257687,1754307043735,-1639.27,0.00038356,2]
[377257689,1754307043744,-400.0,0.00038356,2]
[377257691,1754307043754,-400.0,0.00038356,2]
[377257693,1754307043764,-400.0,0.00038356,2]
[377257695,1754307043773,-400.0,0.00038356,2]
[377257697,1754307043783,-400.0,0.00038356,2]
[377257699,1754307043792,-637.5,0.00038356,2]
[377257701,1754307043802,-400.0,0.00038356,2]
[377257703,1754307043811,-505.0,0.00038356,2]
[377257705,1754307043821,-1088.77,0.00038356,2]
[377257707,1754307043830,-1100.75,0.00038356,2]
[377257709,1754307043840,-400.0,0.00038356,2]
[377257711,1754307043850,-1499.25,0.00038356,2]
[377257713,1754307043860,-496.52,0.00038356,2]
[377257715,1754307043870,-400.0,0.00038356,2]
[377257717,1754307043880,-524.64412755,0.00038356,2]
[377257719,1754307043889,-1352.26,0.00038356,2]
[377257721,1754307043899,-2643.96,0.00038356,2]
[377257723,1754307043909,-411.03,0.00038356,2]
[377257725,1754307043918,-400.0,0.00038356,2]
[377257727,1754307043928,-400.0,0.00038356,2]
[377257729,1754307043938,-3717.59,0.00038356,2]
[377257731,1754307043949,-400.0,0.00038356,2]
[377257733,1754307043958,-400.0,0.00038356,2]
[377257735,1754307043968,-1674.1,0.00038356,2]
[377257737,1754307043978,-400.0,0.00038356,2]
[377257739,1754307043987,-2317.11,0.00038356,2]
[377257741,1754307043997,-439.85,0.00038356,2]
[377257743,1754307044008,-400.0,0.00038356,2]
[377257745,1754307044018,-1175.8,0.00038356,2]
[377257747,1754307044027,-400.0,0.00038356,2]
[377257749,1754307044036,-401.29029597,0.00038356,2]
[377257751,1754307044046,-400.0,0.00038356,2]
[377257753,1754307044056,-902.64,0.00038356,2]
[377257755,1754307044066,-400.0,0.00038356,2]
[377257758,1754307044075,-889.46,0.00038356,2]
[377257760,1754307044085,-716.87,0.00038356,2]
[377257762,1754307044098,-2298.94,0.00038356,2]
[377257764,1754307044107,-3274.38,0.00038356,2]
[377257766,1754307044117,-1218.23,0.00038356,2]
[377257768,1754307044127,-1306.33,0.00038356,2]
[377257770,1754307044137,-679.6,0.00038356,2]
[377257772,1754307044146,-400.0,0.00038356,2]
[377257774,1754307044156,-400.0,0.00038356,2]
[377257776,1754307044165,-1060.53,0.00038356,2]
[377257778,1754307044175,-1373.45,0.00038356,2]
[377257780,1754307044186,-400.0,0.00038356,2]
[377257782,1754307044195,-1528.27,0.00038356,2]
[377257784,1754307044204,-500.0,0.00038356,2]
[377257786,1754307044214,-500.0,0.00038356,2]
[377257788,1754307044224,-400.0,0.00038356,2]
[377257790,1754307044233,-1166.0,0.00038356,2]
[377257792,1754307044243,-519.84028877,0.00038356,2]
[377257794,1754307044252,-1074.519448,0.00038356,2]
[377257796,1754307044262,-1074.519448,0.00038356,2]
[377257799,1754307044272,-843.75,0.00038356,2]
[377257801,1754307044281,-414.05891558,0.00038356,2]
[377257803,1754307044290,-400.0,0.00038356,2]
[377257805,1754307044299,-400.0,0.00038356,2]
[377257807,1754307044309,-400.0,0.00038356,2]
[377257809,1754307044319,-400.0,0.00038356,2]
[377257811,1754307044328,-1400.21,0.00038356,2]
[377257813,1754307044337,-688.596206,0.00038356,2]
[377257815,1754307044346,-688.596206,0.00038356,2]
[377257817,1754307044356,-766.64,0.00038356,2]
[377257819,1754307044365,-400.0,0.00038356,2]
[377257821,1754307044375,-1264.47,0.00038356,2]
[377257823,1754307044384,-400.0,0.00038356,2]
[377257825,1754307044394,-400.0,0.00038356,2]
[377257827,1754307044404,-451.12,0.00038356,2]
[377257829,1754307044414,-1858.26,0.00038356,2]
[377257831,1754307044423,-1097.944232,0.00038356,2]
[377257833,1754307044432,-576.4,0.00038356,2]
[377257835,1754307044441,-516.05,0.00038356,2]
[377257837,1754307044450,-1097.944232,0.00038356,2]
[377257839,1754307044459,-1560.4,0.00038356,2]
[377257841,1754307044469,-955.21,0.00038356,2]
[377257843,1754307044478,-400.0,0.00038356,2]
[377257845,1754307044488,-400.0,0.00038356,2]
[377257847,1754307044497,-1319.58,0.00038356,2]
[377257849,1754307044507,-400.0,0.00038356,2]
[377257851,1754307044517,-763.75,0.00038356,2]
[377257853,1754307044526,-400.0,0.00038356,2]
[377257855,1754307044536,-400.0,0.00038356,2]
[377257857,1754307044545,-462.11,0.00038356,2]
[377257859,1754307044555,-400.0,0.00038356,2]
[377257861,1754307044564,-400.0,0.00038356,2]
[377257863,1754307044574,-491.54,0.00038356,2]
[377257865,1754307044583,-585.53,0.00038356,2]
[377257867,1754307044593,-400.0,0.00038356,2]
[377257869,1754307044602,-400.0,0.00038356,2]
[377257871,1754307044612,-400.0,0.00038356,2]
[377257873,1754307044621,-400.0,0.00038356,2]
[377257875,1754307044631,-3730.41,0.00038356,2]
[377257877,1754307044641,-400.0,0.00038356,2]
[377257878,1754307044654,-400.0,0.00038356,2]
[377257880,1754307044664,-944.3,0.00038356,2]
[377257882,1754307044674,-400.0,0.00038356,2]
[377257884,1754307044684,-700.29,0.00038356,2]
[377257886,1754307044694,-810.6,0.00038356,2]
[377257888,1754307044703,-2054.28,0.00038356,2]
[377257890,1754307044713,-32828.96,0.00038356,2]
[377257892,1754307044723,-1224.12,0.00038356,2]
[377257894,1754307044733,-400.0,0.00038356,2]
[377257897,1754307044743,-2397.74,0.00038356,2]
[377257899,1754307044752,-2297.83,0.00038356,2]
[377257900,1754307044761,-2164.55,0.00038356,2]
[377257903,1754307044772,-400.0,0.00038356,2]
[377257905,1754307044782,-400.0,0.00038356,2]
[377257907,1754307044792,-406.1,0.00038356,2]
[377257909,1754307044801,-400.0,0.00038356,2]
[377257911,1754307044811,-400.0,0.00038356,2]
[377257913,1754307044820,-1542.06,0.00038356,2]
[377257915,1754307044830,-1597.87,0.00038356,2]
[377257916,1754307044839,-1458.8,0.00038356,2]
[377257918,1754307044849,-400.0,0.00038356,2]
[377257920,1754307044858,-3637.58,0.00038356,2]
[377257922,1754307044867,-2413.69,0.00038356,2]
[377257924,1754307044877,-400.0,0.00038356,2]
[377257926,1754307044887,-208.91728259,0.00038356,2]
[377257928,1754307044896,-1860.78,0.00038356,2]
[377257930,1754307044906,-400.0,0.00038356,2]
[377257933,1754307044916,-542.49,0.00038356,2]
[377257943,1754307045004,-400.0,0.00038356,2]
[377257945,1754307045014,-400.0,0.00038356,2]
[377257947,1754307045024,-400.0,0.00038356,2]
[377257949,1754307045034,-1015.64,0.00038356,2]
[377257951,1754307045043,-400.0,0.00038356,2]
[377257953,1754307045053,-896.59,0.00038356,2]
[377257955,1754307045062,-430.35,0.00038356,2]